fUSD/lending_fUSD_20260520
["ID","MTS","AMOUNT","RATE_DAILY","PERIOD"]
[422653973,1779211832000,-500.0,0.00012308,2]
[422653972,1779211832000,-500.0,0.00012308,2]
[422653954,1779211832000,-500.0,0.00012308,2]
[422653969,1779211832000,-500.0,0.00012308,2]
[422653984,1779211832000,-500.0,0.00012308,2]
[422653970,1779211832000,-500.0,0.00012308,2]
[422653981,1779211832000,-500.0,0.00012308,2]
[422653982,1779211832000,-500.0,0.00012308,2]
[422653978,1779211832000,-500.0,0.00012308,2]
[422653983,1779211832000,-500.0,0.00012308,2]
[422653980,1779211832000,-500.0,0.00012308,2]
[422653977,1779211832000,-500.0,0.00012308,2]
[422653976,1779211832000,-500.0,0.00012308,2]
[422653968,1779211832000,-500.0,0.00012308,2]
[422653971,1779211832000,-500.0,0.00012308,2]
[422653979,1779211832000,-500.0,0.00012308,2]
[422654042,1779211833000,-4491.05747609,0.00012308,2]
[422654044,1779211833000,-4491.05747609,0.00012308,2]
[422654041,1779211833000,-1978.70077554,0.00012308,2]
[422654040,1779211833000,-2557.72091747,0.00012308,2]
[422654039,1779211833000,-4536.42169301,0.00012308,2]
[422654043,1779211833000,-4491.05747609,0.00012308,2]
[422654045,1779211833000,-4491.05747609,0.00012308,2]
[422654047,1779211833000,-4491.05747609,0.00012308,2]
[422654049,1779211833000,-4491.05747609,0.00012308,2]
[422654048,1779211833000,-4491.05747609,0.00012308,2]
[422654046,1779211833000,-4491.05747609,0.00012308,2]
[422654059,1779211833000,-500.0,0.00012585,2]
[422654058,1779211833000,-39199.36812681,0.00012527,2]
[422654054,1779211833000,-287.0,0.00012329,2]
[422654050,1779211833000,-4491.05747609,0.00012308,2]
[422654051,1779211833000,-4491.05747607,0.00012308,2]
[422654035,1779211833000,-4536.42169301,0.00012308,2]
[422654057,1779211833000,-250.0,0.00012516,2]
[422654037,1779211833000,-4536.42169301,0.00012308,2]
[422654023,1779211833000,-4536.42169301,0.00012308,2]
[422654036,1779211833000,-4536.42169301,0.00012308,2]
[422654020,1779211833000,-4536.42169301,0.00012308,2]
[422654021,1779211833000,-4536.42169301,0.00012308,2]
[422654016,1779211833000,-4536.42169301,0.00012308,2]
[422654022,1779211833000,-4536.42169301,0.00012308,2]
[422654019,1779211833000,-4536.42169301,0.00012308,2]
[422654018,1779211833000,-4536.42169301,0.00012308,2]
[422654034,1779211833000,-4536.42169301,0.00012308,2]
[422654052,1779211833000,-500.0,0.00012311,2]
[422654038,1779211833000,-4536.42169301,0.00012308,2]
[422654024,1779211833000,-4536.42169301,0.00012308,2]
[422654028,1779211833000,-4536.42169301,0.00012308,2]
[422654029,1779211833000,-4536.42169301,0.00012308,2]
[422654027,1779211833000,-4536.42169301,0.00012308,2]
[422654026,1779211833000,-4536.42169301,0.00012308,2]
[422654031,1779211833000,-4536.42169301,0.00012308,2]
[422654030,1779211833000,-4536.42169301,0.00012308,2]
[422654033,1779211833000,-4536.42169301,0.00012308,2]
[422654032,1779211833000,-4536.42169301,0.00012308,2]
[422654025,1779211833000,-4536.42169301,0.00012308,2]
[422654055,1779211833000,-39199.36812681,0.00012368,2]
[422654061,1779211833000,-22668.90055874,0.00012596,2]
[422654056,1779211833000,-250.0,0.00012516,2]
[422654082,1779211833000,-204.0,0.0001285,2]
[422654084,1779211833000,-204.0,0.0001285,2]
[422654085,1779211833000,-204.0,0.0001285,2]
[422654017,1779211833000,-4536.42169301,0.00012308,2]
[422654086,1779211833000,-203.9,0.0001285,2]
[422654088,1779211833000,-6566.58046349,0.00012852,2]
[422654087,1779211833000,-1102.65356766,0.00012851,3]
[422654092,1779211833000,-559.92859259,0.00012852,2]
[422654089,1779211833000,-292416.790057,0.00012852,2]
[422654091,1779211833000,-9789.83868015,0.00012852,2]
[422654090,1779211833000,-1254.41808677,0.00012852,2]
[422654094,1779211833000,-3850.75,0.00012852,2]
[422654096,1779211833000,-500.0,0.00012307,2]
[422654095,1779211833000,-255.5726158,0.00012307,2]
[422654097,1779211833000,-236.39360213,0.00012307,2]
[422654099,1779211833000,-149.45837013,0.00012852,2]
[422654098,1779211833000,-500.0,0.00012307,2]
[422654079,1779211833000,-204.0,0.0001285,2]
[422654077,1779211833000,-39199.36812681,0.00012844,2]
[422654076,1779211833000,-409.48033349,0.00012842,2]
[422654078,1779211833000,-204.0,0.0001285,2]
[422654062,1779211833000,-1285.89,0.00012602,2]
[422654064,1779211833000,-250.0,0.00012626,2]
[422654060,1779211833000,-255.0,0.00012588,2]
[422654063,1779211833000,-2175.49,0.00012612,2]
[422654066,1779211833000,-17633.22732989,0.00012685,2]
[422654067,1779211833000,-21566.14079692,0.00012685,2]
[422654065,1779211833000,-1680.0,0.00012626,2]
[422654069,1779211833000,-5000.0,0.00012752,2]
[422654053,1779211833000,-2175.49,0.00012312,2]
[422654068,1779211833000,-2676.4307,0.00012752,2]
[422654071,1779211833000,-162.87295536,0.00012759,2]
[422654073,1779211833000,-12463.53528865,0.00012759,2]
[422654074,1779211833000,-1290.54801079,0.00012814,2]
[422654072,1779211833000,-730.84303976,0.00012759,2]
[422654083,1779211833000,-204.0,0.0001285,2]
[422654075,1779211833000,-336.6022,0.00012822,2]
[422654081,1779211833000,-204.0,0.0001285,2]
[422654080,1779211833000,-204.0,0.0001285,2]
[422654070,1779211833000,-1254.0736484,0.00012759,2]
[422654093,1779211833000,-2124.90000001,0.00012852,2]
[422654100,1779211834000,-508.13384482,0.00012852,2]
[422654230,1779211838000,-1355.23,0.00013698,2]
[422654129,1779211838000,-39199.36812681,0.00013003,2]
[422654126,1779211838000,-208.58623393,0.00012953,2]
[422654123,1779211838000,-2000.0,0.00012914,2]
[422654131,1779211838000,-163.31,0.00013119,2]
[422654125,1779211838000,-2000.0,0.00012952,2]
[422654128,1779211838000,-150.0,0.00012987,2]
[422654127,1779211838000,-22668.90055874,0.0001298,2]
[422654130,1779211838000,-160.0,0.00013086,2]
[422654124,1779211838000,-33191.258,0.00012952,2]
[422654145,1779211838000,-39199.36812681,0.0001332,2]
[422654148,1779211838000,-22668.90055874,0.00013364,2]
[422654150,1779211838000,-500.0,0.00013407,2]
[422654133,1779211838000,-1290.54801078,0.00013162,2]
[422654139,1779211838000,-1200.9,0.00013287,2]
[422654141,1779211838000,-500.0,0.00013288,2]
[422654143,1779211838000,-48098.45885731,0.00013308,2]
[422654134,1779211838000,-39199.36812681,0.00013162,2]
[422654135,1779211838000,-1000.0,0.00013198,2]
[422654121,1779211838000,-2175.49,0.00012912,2]
[422654122,1779211838000,-298.21,0.00012914,2]
[422654105,1779211838000,-500.0,0.00012307,2]
[422654104,1779211838000,-500.0,0.00012307,2]
[422654106,1779211838000,-500.0,0.00012307,2]
[422654109,1779211838000,-514.24238958,0.00012307,2]
[422654107,1779211838000,-500.0,0.00012307,2]
[422654108,1779211838000,-500.13086865,0.00012307,2]
[422654110,1779211838000,-150.33629732,0.00012307,2]
[422654132,1779211838000,-500.0,0.00013133,2]
[422654232,1779211838000,-1355.23,0.00013698,2]
[422654114,1779211838000,-751.76938468,0.00012852,2]
[422654113,1779211838000,-8983.45601736,0.00012852,2]
[422654116,1779211838000,-2171375.268203,0.00012852,2]
[422654115,1779211838000,-1668.7083,0.00012852,2]
[422654119,1779211838000,-275.27,0.00012877,2]
[422654118,1779211838000,-500.0,0.00012859,2]
[422654120,1779211838000,-409.48033349,0.00012904,2]
[422654112,1779211838000,-2595.52527996,0.00012759,2]
[422654137,1779211838000,-2175.49,0.00013213,2]
[422654111,1779211838000,-349.66370268,0.00012307,2]
[422654152,1779211838000,-893.013473,0.00013442,2]
[422654187,1779211838000,-150.0,0.00013588,2]
[422654200,1779211838000,-39199.36812681,0.00013638,2]
[422654204,1779211838000,-150.0,0.00013687,2]
[422654202,1779211838000,-500.0,0.00013681,2]
[422654206,1779211838000,-500.0,0.00013698,2]
[422654208,1779211838000,-500.0,0.00013698,2]
[422654220,1779211838000,-1355.23,0.00013698,2]
[422654196,1779211838000,-150.0,0.00013624,2]
[422654222,1779211838000,-1355.23,0.00013698,2]
[422654210,1779211838000,-1120.84,0.00013698,2]
[422654224,1779211838000,-1355.23,0.00013698,2]
[422654216,1779211838000,-1355.23,0.00013698,2]
[422654218,1779211838000,-1355.23,0.00013698,2]
[422654226,1779211838000,-1355.23,0.00013698,2]
[422654228,1779211838000,-1355.23,0.00013698,2]
[422654154,1779211838000,-3061.095148,0.00013442,2]
[422654212,1779211838000,-1355.23,0.00013698,2]
[422654189,1779211838000,-1398.659572,0.00013609,2]
[422654214,1779211838000,-1355.23,0.00013698,2]
[422654183,1779211838000,-150.0,0.00013538,2]
[422654156,1779211838000,-514.227466,0.00013442,2]
[422654194,1779211838000,-48098.45885731,0.00013622,2]
[422654168,1779211838000,-150.0,0.00013488,2]
[422654170,1779211838000,-150.0,0.00013488,2]
[422654172,1779211838000,-152.35107503,0.00013488,2]
[422654174,1779211838000,-150.0,0.00013488,2]
[422654160,1779211838000,-39199.36812681,0.00013479,2]
[422654166,1779211838000,-150.0,0.00013488,2]
[422654158,1779211838000,-48098.45885731,0.00013465,2]
[422654177,1779211838000,-150.0,0.00013488,2]
[422654162,1779211838000,-150.0,0.00013488,2]
[422654179,1779211838000,-150.0,0.00013488,2]
[422654198,1779211838000,-150.0,0.00013638,2]
[422654181,1779211838000,-1290.54801078,0.00013509,2]
[422654185,1779211838000,-1641.334637,0.00013553,2]
[422654164,1779211838000,-150.0,0.00013488,2]
[422654192,1779211838000,-1740.377766,0.00013609,2]
[422654310,1779211839000,-500.0,0.00013698,2]
[422654320,1779211839000,-500.0,0.00013698,2]
[422654319,1779211839000,-500.0,0.00013698,2]
[422654309,1779211839000,-500.0,0.00013698,2]
[422654304,1779211839000,-500.0,0.00013698,2]
[422654307,1779211839000,-500.0,0.00013698,2]
[422654303,1779211839000,-500.0,0.00013698,2]
[422654301,1779211839000,-500.0,0.00013698,2]
[422654300,1779211839000,-500.0,0.00013698,2]
[422654292,1779211839000,-500.0,0.00013698,2]
[422654308,1779211839000,-500.0,0.00013698,2]
[422654296,1779211839000,-500.0,0.00013698,2]
[422654306,1779211839000,-500.0,0.00013698,2]
[422654312,1779211839000,-500.0,0.00013698,2]
[422654321,1779211839000,-500.0,0.00013698,2]
[422654313,1779211839000,-500.0,0.00013698,2]
[422654311,1779211839000,-500.0,0.00013698,2]
[422654314,1779211839000,-500.0,0.00013698,2]
[422654315,1779211839000,-500.0,0.00013698,2]
[422654317,1779211839000,-500.0,0.00013698,2]
[422654316,1779211839000,-500.0,0.00013698,2]
[422654323,1779211839000,-500.0,0.00013698,2]
[422654324,1779211839000,-399.8127821,0.00013698,2]
[422654327,1779211839000,-625.64,0.00013698,2]
[422654329,1779211839000,-625.64,0.00013698,2]
[422654326,1779211839000,-625.64,0.00013698,2]
[422654328,1779211839000,-625.64,0.00013698,2]
[422654290,1779211839000,-500.0,0.00013698,2]
[422654318,1779211839000,-500.0,0.00013698,2]
[422654294,1779211839000,-513.26513415,0.00013698,2]
[422654256,1779211839000,-1355.23,0.00013698,2]
[422654288,1779211839000,-500.0,0.00013698,2]
[422654325,1779211839000,-625.64,0.00013698,2]
[422654234,1779211839000,-1355.23,0.00013698,2]
[422654236,1779211839000,-1355.23,0.00013698,2]
[422654245,1779211839000,-1355.23,0.00013698,2]
[422654238,1779211839000,-1355.23,0.00013698,2]
[422654253,1779211839000,-1355.23,0.00013698,2]
[422654243,1779211839000,-1355.23,0.00013698,2]
[422654241,1779211839000,-1355.23,0.00013698,2]
[422654251,1779211839000,-1355.23,0.00013698,2]
[422654247,1779211839000,-1355.23,0.00013698,2]
[422654249,1779211839000,-1355.23,0.00013698,2]
[422654254,1779211839000,-1355.23,0.00013698,2]
[422654259,1779211839000,-1355.39,0.00013698,2]
[422654298,1779211839000,-500.0,0.00013698,2]
[422654261,1779211839000,-500.0,0.00013698,2]
[422654273,1779211839000,-500.0,0.00013698,2]
[422654275,1779211839000,-500.0,0.00013698,2]
[422654274,1779211839000,-500.0,0.00013698,2]
[422654277,1779211839000,-500.0,0.00013698,2]
[422654278,1779211839000,-500.0,0.00013698,2]
[422654265,1779211839000,-500.0,0.00013698,2]
[422654276,1779211839000,-508.82,0.00013698,2]
[422654280,1779211839000,-500.0,0.00013698,2]
[422654284,1779211839000,-430.00188072,0.00013698,2]
[422654271,1779211839000,-500.0,0.00013698,2]
[422654267,1779211839000,-500.0,0.00013698,2]
[422654282,1779211839000,-500.0,0.00013698,2]
[422654269,1779211839000,-500.0,0.00013698,2]
[422654263,1779211839000,-500.0,0.00013698,2]
[422654330,1779211839000,-625.64,0.00013698,2]
[422654286,1779211839000,-500.0,0.00013698,2]
[422654333,1779211839000,-625.64,0.00013698,2]
[422654372,1779211839000,-1500000.0,0.00013716,2]
[422654373,1779211839000,-161.0,0.00013716,2]
[422654375,1779211839000,-150.0,0.00013737,2]
[422654364,1779211839000,-425.07609623,0.00013715,2]
[422654374,1779211839000,-150.0,0.00013737,2]
[422654365,1779211839000,-625.64,0.00013715,2]
[422654366,1779211839000,-625.64,0.00013715,2]
[422654370,1779211839000,-625.64,0.00013715,2]
[422654368,1779211839000,-625.64,0.00013715,2]
[422654369,1779211839000,-625.64,0.00013715,2]
[422654371,1779211839000,-625.64,0.00013715,2]
[422654367,1779211839000,-625.64,0.00013715,2]
[422654377,1779211839000,-22668.90055874,0.00013748,2]
[422654376,1779211839000,-433.0,0.0001374,2]
[422654378,1779211839000,-150.0,0.0001376,2]
[422654387,1779211839000,-1290.54801078,0.00013857,2]
[422654380,1779211839000,-1254.07364838,0.0001383,2]
[422654379,1779211839000,-150.0,0.00013787,2]
[422654382,1779211839000,-730.84303976,0.0001383,2]
[422654381,1779211839000,-162.87295535,0.0001383,2]
[422654383,1779211839000,-12463.53528865,0.0001383,2]
[422654384,1779211839000,-166.66,0.00013836,2]
[422654386,1779211839000,-168.13,0.00013852,2]
[422654385,1779211839000,-150.0,0.00013837,2]
[422654388,1779211839000,-150.0,0.00013862,2]
[422654389,1779211839000,-150.0,0.00013887,2]
[422654390,1779211839000,-2351.0,0.00013889,2]
[422654393,1779211839000,-163.31,0.00013939,2]
[422654322,1779211839000,-500.0,0.00013698,2]
[422654363,1779211839000,-500.0,0.00013715,2]
[422654356,1779211839000,-500.0,0.00013715,2]
[422654391,1779211839000,-150.0,0.00013896,2]
[422654392,1779211839000,-150.0,0.00013937,2]
[422654353,1779211839000,-500.0,0.00013715,2]
[422654334,1779211839000,-625.64,0.00013698,2]
[422654332,1779211839000,-625.64,0.00013698,2]
[422654335,1779211839000,-625.64,0.00013698,2]
[422654338,1779211839000,-546.34,0.00013699,2]
[422654346,1779211839000,-500.0,0.00013715,2]
[422654337,1779211839000,-166.66,0.00013699,2]
[422654339,1779211839000,-2500.0,0.00013699,2]
[422654340,1779211839000,-7264.1,0.00013699,2]
[422654336,1779211839000,-625.64,0.00013698,2]
[422654347,1779211839000,-500.0,0.00013715,2]
[422654341,1779211839000,-200.0,0.00013699,2]
[422654343,1779211839000,-500.0,0.00013715,2]
[422654342,1779211839000,-500.0,0.00013715,2]
[422654331,1779211839000,-625.64,0.00013698,2]
[422654344,1779211839000,-500.0,0.00013715,2]
[422654358,1779211839000,-500.0,0.00013715,2]
[422654357,1779211839000,-500.0,0.00013715,2]
[422654354,1779211839000,-500.0,0.00013715,2]
[422654355,1779211839000,-500.0,0.00013715,2]
[422654345,1779211839000,-500.0,0.00013715,2]
[422654350,1779211839000,-500.0,0.00013715,2]
[422654361,1779211839000,-500.0,0.00013715,2]
[422654352,1779211839000,-500.0,0.00013715,2]
[422654362,1779211839000,-500.0,0.00013715,2]
[422654351,1779211839000,-500.0,0.00013715,2]
[422654348,1779211839000,-500.0,0.00013715,2]
[422654359,1779211839000,-500.0,0.00013715,2]
[422654349,1779211839000,-500.0,0.00013715,2]
[422654360,1779211839000,-500.0,0.00013715,2]
[422654435,1779211840000,-500.62055786,0.00014257,2]
[422654437,1779211840000,-150.74815113,0.00014257,2]
[422654438,1779211840000,-150.0,0.00014257,2]
[422654436,1779211840000,-150.0,0.00014257,2]
[422654423,1779211840000,-500.0,0.00014257,2]
[422654431,1779211840000,-177.01992321,0.00014257,2]
[422654432,1779211840000,-500.0,0.00014257,2]
[422654428,1779211840000,-500.0,0.00014257,2]
[422654426,1779211840000,-500.0,0.00014257,2]
[422654427,1779211840000,-539.56685334,0.00014257,2]
[422654422,1779211840000,-500.0,0.00014257,2]
[422654442,1779211840000,-500.0,0.00014257,2]
[422654433,1779211840000,-500.0,0.00014257,2]
[422654443,1779211840000,-185.87830768,0.00014257,2]
[422654434,1779211840000,-557.62726141,0.00014257,2]
[422654441,1779211840000,-150.0,0.00014257,2]
[422654439,1779211840000,-150.0,0.00014257,2]
[422654444,1779211840000,-500.0,0.00014257,2]
[422654446,1779211840000,-500.0,0.00014257,2]
[422654455,1779211840000,-500.0,0.00014257,2]
[422654448,1779211840000,-500.0,0.00014257,2]
[422654450,1779211840000,-413.19836164,0.00014257,2]
[422654454,1779211840000,-317.74373799,0.00014257,2]
[422654445,1779211840000,-500.0,0.00014257,2]
[422654447,1779211840000,-500.0,0.00014257,2]
[422654425,1779211840000,-500.0,0.00014257,2]
[422654451,1779211840000,-500.0,0.00014257,2]
[422654440,1779211840000,-256.32821497,0.00014257,2]
[422654430,1779211840000,-441.19250183,0.00014257,2]
[422654409,1779211840000,-500.0,0.00014192,2]
[422654429,1779211840000,-500.0,0.00014257,2]
[422654452,1779211840000,-500.0,0.00014257,2]
[422654395,1779211840000,-166.66,0.00013973,2]
[422654394,1779211840000,-500.0,0.00013955,2]
[422654397,1779211840000,-150.0,0.00013987,2]
[422654396,1779211840000,-150.0,0.00013987,2]
[422654398,1779211840000,-150.0,0.00013987,2]
[422654402,1779211840000,-150.0,0.00014037,2]
[422654404,1779211840000,-166.66,0.0001411,2]
[422654403,1779211840000,-150.0,0.00014087,2]
[422654405,1779211840000,-22668.90055874,0.00014132,2]
[422654399,1779211840000,-150.0,0.00013987,2]
[422654401,1779211840000,-150.0,0.00014033,2]
[422654400,1779211840000,-250.0,0.00014,2]
[422654407,1779211840000,-150.0,0.00014169,2]
[422654417,1779211840000,-500.0,0.00014257,2]
[422654411,1779211840000,-500.0,0.00014228,2]
[422654410,1779211840000,-1290.54801078,0.00014205,2]
[422654412,1779211840000,-150.0,0.00014237,2]
[422654413,1779211840000,-150.0,0.00014237,2]
[422654414,1779211840000,-150.0,0.00014237,2]
[422654416,1779211840000,-500.0,0.00014257,2]
[422654415,1779211840000,-166.66,0.00014247,2]
[422654408,1779211840000,-150.0,0.00014187,2]
[422654418,1779211840000,-275.90692005,0.00014257,2]
[422654419,1779211840000,-500.0,0.00014257,2]
[422654421,1779211840000,-500.0,0.00014257,2]
[422654420,1779211840000,-275.76317604,0.00014257,2]
[422654424,1779211840000,-500.0,0.00014257,2]
[422654453,1779211840000,-500.0,0.00014257,2]
[422654406,1779211840000,-150.0,0.00014137,2]
[422654457,1779211840000,-500.0,0.00014257,2]
[422654485,1779211840000,-500.0,0.00014257,2]
[422654488,1779211840000,-500.0,0.00014257,2]
[422654486,1779211840000,-500.0,0.00014257,2]
[422654487,1779211840000,-500.0,0.00014257,2]
[422654495,1779211840000,-500.0,0.00014257,2]
[422654493,1779211840000,-392.34532667,0.00014257,2]
[422654497,1779211840000,-500.0,0.00014257,2]
[422654496,1779211840000,-500.0,0.00014257,2]
[422654505,1779211840000,-500.0,0.00014257,2]
[422654501,1779211840000,-500.0,0.00014257,2]
[422654503,1779211840000,-535.59562921,0.00014257,2]
[422654502,1779211840000,-500.0,0.00014257,2]
[422654494,1779211840000,-500.0,0.00014257,2]
[422654504,1779211840000,-500.0,0.00014257,2]
[422654498,1779211840000,-533.22569157,0.00014257,2]
[422654500,1779211840000,-500.0,0.00014257,2]
[422654506,1779211840000,-500.0,0.00014257,2]
[422654508,1779211840000,-346.94706668,0.00014257,2]
[422654507,1779211840000,-500.0,0.00014257,2]
[422654512,1779211840000,-150.0,0.00014257,2]
[422654511,1779211840000,-200.0,0.00014257,2]
[422654509,1779211840000,-150.0,0.00014257,2]
[422654510,1779211840000,-150.0,0.00014257,2]
[422654513,1779211840000,-500.0,0.00014257,2]
[422654514,1779211840000,-500.0,0.00014257,2]
[422654515,1779211840000,-500.0,0.00014257,2]
[422654449,1779211840000,-500.0,0.00014257,2]
[422654489,1779211840000,-500.0,0.00014257,2]
[422654484,1779211840000,-500.0,0.00014257,2]
[422654499,1779211840000,-500.0,0.00014257,2]
[422654482,1779211840000,-500.0,0.00014257,2]
[422654458,1779211840000,-500.0,0.00014257,2]
[422654483,1779211840000,-506.44330256,0.00014257,2]
[422654459,1779211840000,-500.0,0.00014257,2]
[422654456,1779211840000,-500.0,0.00014257,2]
[422654460,1779211840000,-500.0,0.00014257,2]
[422654468,1779211840000,-500.0,0.00014257,2]
[422654462,1779211840000,-500.0,0.00014257,2]
[422654463,1779211840000,-500.0,0.00014257,2]
[422654464,1779211840000,-500.0,0.00014257,2]
[422654465,1779211840000,-500.0,0.00014257,2]
[422654466,1779211840000,-500.0,0.00014257,2]
[422654461,1779211840000,-500.0,0.00014257,2]
[422654470,1779211840000,-500.0,0.00014257,2]
[422654478,1779211840000,-500.0,0.00014257,2]
[422654467,1779211840000,-500.0,0.00014257,2]
[422654471,1779211840000,-500.0,0.00014257,2]
[422654481,1779211840000,-500.0,0.00014257,2]
[422654492,1779211840000,-500.0,0.00014257,2]
[422654479,1779211840000,-500.0,0.00014257,2]
[422654491,1779211840000,-500.0,0.00014257,2]
[422654490,1779211840000,-515.72234033,0.00014257,2]
[422654469,1779211840000,-349.07736479,0.00014257,2]
[422654480,1779211840000,-500.0,0.00014257,2]
[422654476,1779211840000,-500.0,0.00014257,2]
[422654475,1779211840000,-500.0,0.00014257,2]
[422654477,1779211840000,-500.0,0.00014257,2]
[422654473,1779211840000,-390.26077903,0.00014257,2]
[422654472,1779211840000,-500.0,0.00014257,2]
[422654474,1779211840000,-500.0,0.00014257,2]
[422654557,1779211841000,-417.0,0.00014781,2]
[422654558,1779211841000,-412.0,0.00014783,2]
[422654562,1779211841000,-193.909,0.000148,2]
[422654555,1779211841000,-163.31,0.00014759,2]
[422654547,1779211841000,-150.0,0.00014637,2]
[422654549,1779211841000,-150.0,0.00014714,2]
[422654548,1779211841000,-150.0,0.00014687,2]
[422654553,1779211841000,-700.0,0.0001474,2]
[422654544,1779211841000,-150.0,0.00014587,2]
[422654560,1779211841000,-221.0,0.00014797,2]
[422654554,1779211841000,-222.0,0.00014742,2]
[422654550,1779211841000,-474.0,0.00014736,2]
[422654556,1779211841000,-500.0,0.00014776,2]
[422654565,1779211841000,-409.48033349,0.0001484,2]
[422654559,1779211841000,-150.0,0.00014786,2]
[422654566,1779211841000,-21091.19165994,0.0001485,2]
[422654561,1779211841000,-3841.69,0.00014798,2]
[422654563,1779211841000,-427.0,0.00014806,2]
[422654567,1779211841000,-150.0,0.0001485,2]
[422654568,1779211841000,-389.0,0.00014851,2]
[422654569,1779211841000,-417.0,0.00014856,2]
[422654570,1779211841000,-200.0,0.00014878,2]
[422654571,1779211841000,-200.0,0.00014879,2]
[422654576,1779211841000,-625.64,0.00014899,2]
[422654572,1779211841000,-150.0,0.00014886,2]
[422654551,1779211841000,-150.0,0.00014737,2]
[422654564,1779211841000,-150.0,0.00014836,2]
[422654552,1779211841000,-150.0,0.00014737,2]
[422654517,1779211841000,-351.0706614,0.00014257,2]
[422654546,1779211841000,-168.13,0.00014614,2]
[422654573,1779211841000,-308.869496,0.00014888,2]
[422654516,1779211841000,-500.0,0.00014257,2]
[422654518,1779211841000,-500.0,0.00014257,2]
[422654519,1779211841000,-500.0,0.00014257,2]
[422654521,1779211841000,-500.0,0.00014257,2]
[422654520,1779211841000,-500.0,0.00014257,2]
[422654522,1779211841000,-337.11697857,0.00014257,2]
[422654523,1779211841000,-150.0,0.00014287,2]
[422654526,1779211841000,-350.0,0.00014349,2]
[422654524,1779211841000,-150.0,0.00014305,2]
[422654525,1779211841000,-150.0,0.00014337,2]
[422654528,1779211841000,-2000.0,0.00014349,2]
[422654529,1779211841000,-166.66,0.00014384,2]
[422654545,1779211841000,-150.0,0.00014612,2]
[422654527,1779211841000,-298.21,0.00014349,2]
[422654542,1779211841000,-1290.54801078,0.00014552,2]
[422654540,1779211841000,-22668.90055874,0.00014516,2]
[422654541,1779211841000,-150.0,0.00014537,2]
[422654530,1779211841000,-150.0,0.00014387,2]
[422654531,1779211841000,-150.0,0.00014437,2]
[422654535,1779211841000,-150.0,0.00014487,2]
[422654532,1779211841000,-150.0,0.00014441,2]
[422654538,1779211841000,-102088.73,0.00014497,2]
[422654537,1779211841000,-324.58,0.00014497,2]
[422654536,1779211841000,-150.0,0.00014487,2]
[422654533,1779211841000,-150.0,0.00014487,2]
[422654534,1779211841000,-150.0,0.00014487,2]
[422654543,1779211841000,-150.0,0.00014578,2]
[422654539,1779211841000,-500.0,0.00014502,2]
[422654574,1779211841000,-625.64,0.00014899,2]
[422654587,1779211841000,-12463.53528865,0.000149,2]
[422654577,1779211841000,-625.64,0.00014899,2]
[422654611,1779211841000,-500.0,0.00014999,2]
[422654613,1779211841000,-500.0,0.00014999,2]
[422654616,1779211841000,-500.0,0.00014999,2]
[422654605,1779211841000,-151.0,0.00014997,2]
[422654610,1779211841000,-500.0,0.00014999,2]
[422654615,1779211841000,-500.0,0.00014999,2]
[422654614,1779211841000,-208.46,0.00014999,2]
[422654618,1779211841000,-500.0,0.00014999,2]
[422654629,1779211841000,-500.0,0.00014999,2]
[422654628,1779211841000,-500.0,0.00014999,2]